fUST/lending_fUST_20251224
["ID","MTS","AMOUNT","RATE_DAILY","PERIOD"]
[399647748,1766584654440,-9860.4,0.00032876,120]
[399647749,1766584654498,-18986.35,0.00032876,120]
[399647750,1766584654555,-29039.66,0.00032876,120]
[399647751,1766584654612,-2078.41,0.00032876,120]
[399647752,1766584654668,-18986.35,0.00032876,120]
[399647753,1766584654725,-29039.66,0.00032876,120]
[399647754,1766584654785,-9860.4,0.00032876,120]
[399647755,1766584654843,-2078.41,0.00032876,120]
[399647756,1766584654901,-9860.4,0.00032876,120]
[399647757,1766584654958,-18986.35,0.00032876,120]
[399647758,1766584655016,-29039.66,0.00032876,120]
[399647759,1766584655073,-2078.41,0.00032876,120]
[399647760,1766584655130,-9860.4,0.00032876,120]
[399647761,1766584655187,-18986.35,0.00032876,120]
[399647762,1766584655246,-29039.66,0.00032876,120]
[399647763,1766584655301,-2078.41,0.00032876,120]
[399647764,1766584655368,-9860.4,0.00032876,120]
[399647765,1766584655428,-18986.35,0.00032876,120]
[399647766,1766584655493,-29039.66,0.00032876,120]
[399647767,1766584655550,-2078.41,0.00032876,120]
[399647768,1766584655608,-9860.4,0.00032876,120]
[399647769,1766584655663,-18986.35,0.00032876,120]
[399647770,1766584655726,-2078.41,0.00032876,120]
[399647771,1766584655787,-19889.48662099,0.00032876,120]
[399647772,1766584816483,5000.0,0.000154,120]
[399647773,1766584848913,1044.62395924,0.00012,30]
[399647781,1766585368015,-5000.0,8.139e-05,2]
[399647782,1766585368037,-180.9615565,8.18e-05,2]
[399647783,1766585368058,-443.18283521,8.263e-05,2]
[399647784,1766585368078,-536.0,8.263e-05,2]
[399647785,1766585372179,2339.85560829,8.5e-05,2]
[399647814,1766585432238,-1000.0,8.5e-05,2]
[399647815,1766585432251,-1660.14439171,8.5e-05,2]
[399647816,1766585432263,-539.0,8.5e-05,2]
[399647817,1766585432274,-625.0,8.522e-05,2]
[399647818,1766585432285,-1041.66666667,8.523e-05,2]
[399647819,1766585432295,-250.0,9.877e-05,2]
[399647820,1766585432306,-443.18283521,0.00010096,2]
[399647821,1766585432317,-213.53463667,0.0001018,2]
[399647822,1766585432328,-300.0,0.00011268,2]
[399647823,1766585432338,-1108.0,0.00011269,2]
[399647824,1766585432348,-1663.2217204,0.00011273,2]
[399647825,1766585432360,-443.18283521,0.0001193,2]
[399647826,1766585432370,-500.0,0.00012,2]
[399647827,1766585432381,-500.0,0.00012054,2]
[399647828,1766585432392,-246.10771683,0.0001218,2]
[399647829,1766585432402,-300.0,0.00012272,2]
[399647830,1766585432412,-300.0,0.00012272,2]
[399647831,1766585432422,-300.0,0.00012272,2]
[399647832,1766585432433,-999.0,0.00012273,2]
[399647833,1766585432447,-153.14,0.00012329,2]
[399647834,1766585432457,-765.72,0.00012329,2]
[399647835,1766585432468,-158.0,0.000129,2]
[399647836,1766585432478,-158.0,0.000129,2]
[399647837,1766585432488,-158.0,0.000129,2]
[399647838,1766585432499,-1734.43305004,0.00013013,2]
[399647839,1766585432509,-2710.05164069,0.00013013,2]
[399647840,1766585432520,-3898.57188823,0.00013013,2]
[399647841,1766585432529,-500.0,0.00013172,2]
[399647842,1766585432539,-501.09537265,0.00013172,2]
[399647843,1766585432549,-500.0,0.00013172,2]
[399647844,1766585432559,-423.55710937,0.00013172,2]
[399647845,1766585432570,-418.287076,0.00013172,2]
[399647846,1766585432580,-464.8428136,0.00013172,2]
[399647847,1766585432591,-500.0,0.00013172,2]
[399647848,1766585432601,-500.0,0.00013172,2]
[399647849,1766585432612,-500.0,0.00013172,2]
[399647850,1766585432622,-500.0,0.00013172,2]
[399647851,1766585432632,-643.84078863,0.00013172,2]
[399647852,1766585432643,-500.0,0.00013172,2]
[399647853,1766585432653,-329.3902901,0.00013172,2]
[399647854,1766585432663,-151.0,0.00013265,2]
[399647855,1766585432673,-166.16283311,0.00013265,2]
[399647856,1766585432684,-514.84070869,0.00013265,2]
[399647857,1766585432694,-500.0,0.00013273,2]
[399647858,1766585432704,-500.0,0.00013273,2]
[399647859,1766585432714,-500.0,0.00013273,2]
[399647860,1766585432725,-500.0,0.00013273,2]
[399647861,1766585432735,-500.0,0.00013273,2]
[399647862,1766585432745,-500.0,0.00013273,2]
[399647863,1766585432755,-416.11179489,0.00013273,2]
[399647864,1766585432764,-500.0,0.00013273,2]
[399647865,1766585432774,-500.0,0.00013273,2]
[399647866,1766585432784,-500.0,0.00013273,2]
[399647867,1766585432795,-500.0,0.00013273,2]
[399647868,1766585432805,-500.0,0.00013273,2]
[399647869,1766585432815,-500.0,0.00013273,2]
[399647870,1766585432826,-500.0,0.00013273,2]
[399647871,1766585432836,-500.0,0.00013273,2]
[399647872,1766585432846,-500.0,0.00013273,2]
[399647873,1766585432856,-500.0,0.00013273,2]
[399647874,1766585432867,-500.0,0.00013273,2]
[399647875,1766585432877,-500.0,0.00013273,2]
[399647876,1766585432887,-500.0,0.00013273,2]
[399647877,1766585432898,-500.0,0.00013273,2]
[399647878,1766585432908,-500.0,0.00013273,2]
[399647879,1766585432918,-500.0,0.00013273,2]
[399647880,1766585432929,-501.65776924,0.00013273,2]
[399647881,1766585432940,-214.90572917,0.00013273,2]
[399647882,1766585432950,-500.0,0.00013273,2]
[399647883,1766585432959,-500.0,0.00013273,2]
[399647884,1766585432970,-500.0,0.00013273,2]
[399647885,1766585433275,-500.0,0.00013273,2]
[399647886,1766585433292,-500.0,0.00013273,2]
[399647887,1766585433304,-500.0,0.00013273,2]
[399647888,1766585433314,-500.0,0.00013273,2]
[399647889,1766585433324,-500.0,0.00013273,2]
[399647890,1766585433335,-500.0,0.00013273,2]
[399647891,1766585433346,-500.0,0.00013273,2]
[399647892,1766585433357,-2477.00289333,0.00013281,2]
[399647893,1766585433367,-168.0,0.00013327,2]
[399647894,1766585433377,-7660.0979442,0.00013337,2]
[399647895,1766585433387,-298.79889081,0.0001341,2]
[399647896,1766585433397,-150.0,0.0001341,2]
[399647897,1766585433408,-175.17989982,0.00013424,2]
[399647898,1766585433419,-186.525,0.00013424,2]
[399647899,1766585433429,-231.595,0.00013428,2]
[399647900,1766585433439,-758.742,0.00013428,2]
[399647901,1766585433450,-300.0,0.00013468,2]
[399647902,1766585433460,-300.0,0.00013468,2]
[399647903,1766585433470,-261.62174512,0.000135,2]
[399647904,1766585433481,-1040.0,0.00013512,2]
[399647905,1766585433491,-1040.0,0.00013516,2]
[399647906,1766585433500,-176.56375069,0.00013547,2]
[399647907,1766585433511,-1040.0,0.00013666,2]
[399647908,1766585433522,-1040.0,0.0001367,2]
[399647909,1766585433533,-52213.26199802,0.00013689,2]
[399647947,1766585438371,-170.09,0.0001,2]
[399647950,1766585438381,-740.64100734,0.00013689,2]
[399647952,1766585438394,-2238.14281237,0.00013689,2]
[399647983,1766585440657,-239.27837422,0.00013689,2]
[399650842,1766586632651,-578.40745847,5.943e-05,2]
[399650920,1766586638568,-4421.59254153,5.943e-05,2]
[399650922,1766586638579,-505.0,5.943e-05,2]
[399650924,1766586638589,-184.91603115,5.973e-05,2]
[399650926,1766586638600,-150.0,6.003e-05,2]
[399650928,1766586638611,-150.0,6.549e-05,2]
[399650930,1766586638622,-164.25,7.094e-05,2]
[399650932,1766586638632,-219.0,7.64e-05,2]
[399650934,1766586638642,-218.10691477,7.923e-05,2]
[399650935,1766586638652,-218.20091676,7.973e-05,2]
[399650936,1766586638663,-273.75,8.293e-05,2]
[399650937,1766586638675,-328.5,8.846e-05,2]
[399650938,1766586638685,-218.10691477,9.093e-05,2]
[399650939,1766586638697,-383.26,9.399e-05,2]
[399650940,1766586638708,-438.01,9.952e-05,2]
[399650941,1766586638718,-251.48580237,9.973e-05,2]
[399650942,1766586638728,-543.6,0.0001,2]
[399650943,1766586638740,-543.6,0.000102,2]
[399650944,1766586638750,-218.10691477,0.00010262,2]
[399650945,1766586638760,-300.0,0.00010367,2]
[399650946,1766586638771,-543.6,0.000104,2]
[399650947,1766586638782,-492.76,0.00010504,2]
[399650948,1766586638792,-1041.66666667,0.00010547,2]
[399650949,1766586638802,-543.6,0.000106,2]
[399650950,1766586638813,-543.6,0.000108,2]
[399650951,1766586638824,-543.6,0.00011,2]
[399650952,1766586638835,-547.51,0.00011057,2]
[399650953,1766586638846,-360.0,0.00011399,2]
[399650954,1766586638856,-218.10691477,0.00011432,2]
[399650955,1766586638868,-284.77068798,0.00011973,2]
[399650956,1766586638879,-500.0,0.00012054,2]
[399650957,1766586638890,-218.32502168,0.00012601,2]
[399650958,1766586638900,-151.0,0.00013065,2]
[399650959,1766586638911,-514.84070869,0.00013065,2]
[399650960,1766586638922,-160.0,0.00013065,2]
[399650961,1766586638932,-160.21853784,0.00013065,2]
[399650962,1766586638943,-1000.0,0.00013065,2]
[399650963,1766586638953,-1000.0,0.00013065,2]
[399650964,1766586638967,-1000.0,0.00013065,2]
[399650965,1766586638978,-1000.0,0.00013065,2]
[399650966,1766586638989,-160.0,0.00013072,2]
[399650967,1766586638999,-222.0,0.00013171,2]
[399650968,1766586639013,-222.0,0.00013171,2]
[399650969,1766586639023,-410.33107016,0.00013273,2]
[399650970,1766586639033,-500.0,0.00013273,2]
[399650971,1766586639047,-500.0,0.00013273,2]
[399650973,1766586639057,-500.0,0.00013273,2]
[399650974,1766586639068,-500.0,0.00013273,2]
[399650975,1766586639079,-500.0,0.00013273,2]
[399650977,1766586639090,-332.64591267,0.00013273,2]
[399650979,1766586639100,-500.0,0.00013273,2]
[399650981,1766586639110,-500.0,0.00013273,2]
[399650983,1766586639120,-390.34317373,0.00013273,2]
[399650985,1766586639131,-500.0,0.00013273,2]
[399650987,1766586639141,-638.63991343,0.00013273,2]
[399650989,1766586639151,-500.0,0.00013273,2]
[399650991,1766586639161,-500.0,0.00013273,2]
[399650993,1766586639171,-500.0,0.00013273,2]
[399650995,1766586639182,-500.0,0.00013273,2]
[399650997,1766586639193,-500.0,0.00013273,2]
[399650999,1766586639204,-500.0,0.00013273,2]
[399651001,1766586639214,-471.7822487,0.00013273,2]
[399651003,1766586639224,-500.0,0.00013273,2]
[399651005,1766586639235,-202.70382112,0.00013273,2]
[399651007,1766586639247,-500.0,0.00013273,2]
[399651009,1766586639257,-500.0,0.00013273,2]
[399651011,1766586639267,-500.0,0.00013273,2]
[399651013,1766586639277,-500.0,0.00013273,2]
[399651015,1766586639287,-500.0,0.00013273,2]
[399651017,1766586639297,-500.0,0.00013273,2]
[399651019,1766586639307,-500.0,0.00013273,2]
[399651021,1766586639317,-500.0,0.00013273,2]
[399651023,1766586639327,-2477.00289333,0.00013364,2]
[399651025,1766586639337,-175.17989983,0.00013424,2]
[399651027,1766586639347,-186.526,0.00013424,2]
[399651029,1766586639357,-1579.97087039,0.0001346,2]
[399651031,1766586639367,-1579.97087035,0.00013495,2]
[399651033,1766586639376,-1746.4,0.000135,20]
[399651035,1766586639387,-416.0,0.00013507,2]
[399651037,1766586639397,-168.0,0.00013518,2]
[399651039,1766586639407,-1579.97087035,0.0001353,2]
[399651040,1766586639417,-500.0,0.00013557,2]
[399651042,1766586639426,-1115.88253975,0.00013557,2]
[399651044,1766586639436,-341.60535047,0.00013557,2]
[399651046,1766586639445,-500.0,0.00013557,2]
[399651048,1766586639455,-1115.88253975,0.00013557,2]
[399651050,1766586639465,-1115.88253975,0.00013557,2]
[399651051,1766586639476,-247.55811613,0.00013557,2]
[399651054,1766586639486,-1115.88253975,0.00013557,2]
[399651056,1766586639496,-1115.88253975,0.00013557,2]
[399651058,1766586639507,-1115.88253975,0.00013557,2]
[399651059,1766586639516,-1115.88253975,0.00013557,2]
[399651061,1766586639526,-1115.88253975,0.00013557,2]
[399651063,1766586639536,-1115.88253975,0.00013557,2]
[399651065,1766586639546,-1115.88253975,0.00013557,2]
[399651067,1766586639557,-1115.88253975,0.00013557,2]
[399651069,1766586639566,-2090.5727011,0.0001356,2]
[399651071,1766586639576,-2073.6714862,0.0001356,2]
[399651073,1766586639587,-8233.25326022,0.0001356,2]
[399651076,1766586639601,-479.44917953,0.0001356,2]
[399651079,1766586639621,-794.61667835,0.0001356,2]
[399651356,1766586643558,-3697.29113319,0.0001356,2]
[399651360,1766586643617,-5782.61069268,0.0001356,2]
[399651361,1766586643630,-2082.97485638,0.0001356,2]
[399651370,1766586646499,-3407.10340387,0.0001356,2]
[399651371,1766586646512,-6193.71681628,0.0001356,2]
[399651372,1766586646522,-279.4403,0.0001356,2]
[399651373,1766586646532,-1579.97087035,0.00013564,2]
[399651374,1766586646542,-317.427,0.00013587,2]
[399651375,1766586646553,-1579.97087035,0.00013599,2]
[399651376,1766586646562,-533.88981491,0.00013613,2]
[399651377,1766586646572,-300.0,0.00013673,2]
[399651378,1766586646582,-3025.7650712,0.00013689,2]
[399656515,1766587834251,-5000.0,5.7e-05,2]
[399656516,1766587834261,-503.0,5.758e-05,2]
[399656517,1766587834272,-190.46861143,5.86e-05,2]
[399656518,1766587834283,-150.0,6.065e-05,2]
[399656519,1766587834294,-150.0,6.58e-05,2]
[399656520,1766587834303,-150.0,7.128e-05,2]
[399656521,1766587834314,-250.0,7.608e-05,2]
[399656522,1766587834324,-150.0,7.676e-05,2]
[399656523,1766587834334,-224.75296148,7.86e-05,2]
[399656524,1766587834344,-150.0,8.225e-05,2]
[399656525,1766587834354,-1200.0,8.258e-05,2]
[399656526,1766587834364,-1004.0,8.259e-05,2]
[399656527,1766587834374,-300.0,8.259e-05,2]
[399656528,1766587834384,-286.0,8.259e-05,2]
[399656529,1766587834394,-300.0,8.26e-05,2]
[399656530,1766587834405,-729.0613907,8.263e-05,2]
[399656531,1766587834416,-285.39353908,8.263e-05,2]
[399656532,1766587834427,-150.0,8.773e-05,2]
[399656533,1766587834438,-212.6351328,8.786e-05,2]
[399656534,1766587834451,-256.0,9.084e-05,2]
[399656535,1766587834462,-420.0,9.085e-05,2]
[399656536,1766587834472,-150.0,9.321e-05,2]
[399656537,1766587834483,-729.0613907,9.569e-05,2]
[399656538,1766587834493,-259.03731154,9.86e-05,2]
[399656539,1766587834504,-587.0,9.993e-05,2]
[399656540,1766587834514,-729.0613907,0.00010875,2]
[399656541,1766587834524,-823.0,0.00010993,2]
[399656542,1766587834534,-293.3216616,0.0001186,2]
[399656543,1766587834544,-3000.0,0.00012,2]
[399656544,1766587834554,-270.85329133,0.00012054,2]
[399656545,1766587834564,-486.73,0.00012081,2]
[399656546,1766587834575,-432.0,0.00012092,2]
[399656547,1766587834584,-336.85476278,0.00012179,2]
[399656548,1766587834595,-606.33857301,0.00012179,2]
[399656549,1766587834605,-1077.9352409,0.00012179,2]
[399656550,1766587834616,-1682.5895401,0.00012179,2]
[399656551,1766587834626,-729.0613907,0.00012181,2]
[399656552,1766587834636,-285.39353908,0.00012181,2]
[399656553,1766587834655,-13412.18074309,0.0001272,2]
[399656554,1766587834677,-393.85916451,0.0001282,2]
[399656555,1766587834688,-450.12475944,0.0001282,2]
[399656556,1766587834700,-702.6166167,0.0001282,2]
[399656557,1766587834711,-500.0,0.00012878,2]
[399656558,1766587834723,-296.56469312,0.00012878,2]
[399656559,1766587834735,-1312.9435807,0.00012878,2]
[399656560,1766587834746,-1312.9435807,0.00012878,2]
[399656561,1766587834757,-1312.9435807,0.00012878,2]
[399656562,1766587834768,-1312.9435807,0.00012878,2]
[399656563,1766587834779,-1312.9435807,0.00012878,2]
[399656564,1766587834790,-547.66156127,0.00012878,2]
[399656565,1766587834802,-1312.9435807,0.00012878,2]
[399656566,1766587834813,-514.84070869,0.00012889,2]
[399656567,1766587834823,-151.0,0.00012889,2]
[399656568,1766587834835,-250.0,0.00013,2]
[399656569,1766587834847,-207.77294084,0.00013,2]
[399656570,1766587834867,-6712.5,0.00013,2]
[399656571,1766587834912,-1312.9435807,0.00012878,2]
[399656572,1766587834923,-3255.80187672,0.00013,2]
[399656573,1766587834934,-500.0,0.00013273,2]
[399656574,1766587834946,-500.0,0.00013273,2]
[399656575,1766587834958,-500.0,0.00013273,2]
[399656576,1766587834969,-500.0,0.00013273,2]
[399656577,1766587834980,-500.0,0.00013273,2]
[399656578,1766587834990,-500.0,0.00013273,2]
[399656579,1766587835001,-500.0,0.00013273,2]
[399656580,1766587835011,-268.30089789,0.00013273,2]
[399656581,1766587835023,-500.0,0.00013273,2]
[399656582,1766587835033,-500.0,0.00013273,2]
[399656583,1766587835044,-500.0,0.00013273,2]
[399656584,1766587835055,-500.0,0.00013273,2]
[399656585,1766587835066,-500.0,0.00013273,2]
[399656586,1766587835077,-500.0,0.00013273,2]
[399656587,1766587835087,-500.0,0.00013273,2]
[399656588,1766587835098,-500.0,0.00013273,2]
[399656589,1766587835109,-500.0,0.00013273,2]
[399656590,1766587835119,-500.0,0.00013273,2]
[399656591,1766587835130,-500.0,0.00013273,2]
[399656592,1766587835141,-500.0,0.00013273,2]
[399656593,1766587835160,-500.0,0.00013273,2]
[399656594,1766587835181,-500.0,0.00013273,2]
[399656595,1766587835192,-500.0,0.00013273,2]
[399656596,1766587835204,-500.0,0.00013273,2]
[399656597,1766587835215,-500.0,0.00013273,2]
[399656598,1766587835226,-500.0,0.00013273,2]
[399656599,1766587835237,-500.0,0.00013273,2]
[399656600,1766587835248,-500.0,0.00013273,2]
[399656601,1766587835260,-500.0,0.00013273,2]
[399656602,1766587835270,-260.99048879,0.00013273,2]
[399656603,1766587835281,-150.0,0.00013273,2]
[399656604,1766587835291,-15291.67140061,0.000133,2]
[399656640,1766587838617,-1273.6685903,0.00012878,2]
[399656642,1766587838630,-39.2749904,0.00012878,2]
[399656644,1766587838640,-1008.31277932,0.00012878,2]
[399656656,1766587838754,-304.63080138,0.00012878,2]
[399656659,1766587838765,-936.6663562,0.00012878,2]
[399656661,1766587838781,-376.2772245,0.00012878,2]
[399656663,1766587838791,-105.61494222,0.00012878,2]
[399656844,1766587840790,-250.11936633,0.00012878,2]
[399657048,1766587843922,-957.20927215,0.00012878,2]
[399657049,1766587843933,-1312.9435807,0.00012878,2]
[399657050,1766587843943,-4709.0147667,0.000133,2]
[399657051,1766587843953,-2425.39866639,0.00013309,2]
[399657052,1766587843963,-150.0,0.0001341,2]
[399657053,1766587843972,-508.78627395,0.00013424,2]
[399657054,1766587843983,-181.634,0.00013428,2]
[399657055,1766587843996,-533.88981491,0.00013437,2]
[399657056,1766587844005,-729.0613907,0.00013488,2]
[399657057,1766587844015,-415.0118698,0.00013495,2]
[399657058,1766587844025,-357.96432845,0.00013495,2]
[399657059,1766587844035,-644.33579121,0.00013495,2]
[399657060,1766587844045,-1145.48585105,0.00013495,2]
[399657061,1766587844055,-1789.82164226,0.00013495,2]
[399657062,1766587844066,-1440.46990939,0.00013495,2]
[399657063,1766587844078,-289.54641168,0.00013495,2]
[399657064,1766587844090,-844.74950062,0.00013495,2]
[399657065,1766587844099,-290.29574471,0.00013506,2]
[399657291,1766587846768,-533.66225529,0.00013506,2]
[399657293,1766587846779,-150.0,0.00013506,2]
[399657295,1766587846789,-2075.9827926,0.00013536,2]
[399657297,1766587846798,-200.0,0.00013547,2]
[399657299,1766587846808,-379.56833612,0.00013609,2]
[399657301,1766587846819,-1040.0,0.00013642,2]
[399657303,1766587846829,-1040.0,0.00013684,2]
[399657305,1766587846839,-116639.07993695,0.00013689,2]
[399657313,1766587846915,-253.7425319,0.00013689,2]
[399658868,1766588667117,2791.20466604,0.00013,30]
[399658890,1766588694160,343.2,0.000154,120]
[399659142,1766589040043,-5000.0,7.937e-05,2]
[399659144,1766589040054,-528.14450055,7.937e-05,2]
[399659149,1766589040105,-3.85549945,7.937e-05,2]
[399659151,1766589040115,-188.20297779,8.017e-05,2]
[399659153,1766589040128,-286.84122963,8.098e-05,2]
[399659155,1766589040141,-396.08412086,8.263e-05,2]
[399659157,1766589040151,-1041.66666667,8.595e-05,2]
[399659158,1766589040163,-396.08412086,9.854e-05,2]
[399659160,1766589040174,-222.07951379,0.00010017,2]
[399659162,1766589040185,-250.0,0.00010487,2]
[399659164,1766589040195,-300.0,0.00010688,2]
[399659166,1766589040205,-5917.36094242,0.00010689,2]
[399659168,1766589040217,-1218.8760036,0.00010689,2]
[399659170,1766589040228,-1345.2081271,0.00010959,2]
[399659172,1766589040238,-396.08412086,0.00011446,2]
[399659174,1766589040247,-420.0,0.00011749,2]
[399659175,1766589040257,-255.95604979,0.00012017,2]
[399659177,1766589040268,-500.0,0.0001271,2]
[399659179,1766589040278,-500.0,0.0001271,2]
[399659181,1766589040288,-500.0,0.0001271,2]
[399659183,1766589040298,-500.0,0.0001271,2]
[399659185,1766589040308,-500.0,0.0001271,2]
[399659186,1766589040318,-500.0,0.0001271,2]
[399659188,1766589040328,-500.0,0.0001271,2]
[399659190,1766589040338,-500.0,0.0001271,2]
[399659192,1766589040347,-500.0,0.0001271,2]
[399659193,1766589040358,-500.0,0.0001271,2]
[399659195,1766589040368,-500.0,0.0001271,2]
[399659197,1766589040378,-500.0,0.0001271,2]
[399659199,1766589040388,-500.0,0.0001271,2]
[399659201,1766589040398,-500.0,0.0001271,2]
[399659203,1766589040408,-500.0,0.0001271,2]
[399659204,1766589040418,-500.0,0.0001271,2]
[399659206,1766589040429,-500.0,0.0001271,2]
[399659208,1766589040439,-500.0,0.0001271,2]
[399659210,1766589040449,-500.0,0.0001271,2]
[399659212,1766589040459,-500.0,0.0001271,2]
[399659214,1766589040469,-500.0,0.0001271,2]
[399659216,1766589040479,-500.0,0.0001271,2]
[399659217,1766589040489,-500.0,0.0001271,2]
[399659219,1766589040499,-301.89693437,0.0001271,2]
[399659221,1766589040509,-500.0,0.0001271,2]
[399659223,1766589040519,-500.0,0.0001271,2]
[399659225,1766589040529,-500.0,0.0001271,2]
[399659227,1766589040539,-500.0,0.0001271,2]
[399659229,1766589040550,-500.0,0.0001271,2]
[399659230,1766589040559,-500.0,0.0001271,2]
[399659232,1766589040569,-500.0,0.0001271,2]
[399659234,1766589040579,-500.0,0.0001271,2]
[399659236,1766589040589,-500.0,0.0001271,2]
[399659238,1766589040599,-500.0,0.0001271,2]
[399659239,1766589040609,-500.0,0.0001271,2]
[399659241,1766589040619,-500.0,0.0001271,2]
[399659243,1766589040629,-500.0,0.0001271,2]
[399659245,1766589040639,-500.0,0.0001271,2]
[399659247,1766589040650,-500.0,0.0001271,2]
[399659249,1766589040660,-500.0,0.0001271,2]
[399659251,1766589040670,-500.0,0.0001271,2]
[399659252,1766589040680,-500.0,0.0001271,2]
[399659254,1766589040690,-500.0,0.0001271,2]
[399659256,1766589040700,-500.0,0.0001271,2]
[399659258,1766589040710,-500.0,0.0001271,2]
[399659260,1766589040720,-164.98315675,0.0001271,2]
[399659262,1766589040731,-500.0,0.0001271,2]
[399659263,1766589040745,-500.0,0.0001271,2]
[399659265,1766589040756,-500.0,0.0001271,2]
[399659267,1766589040766,-500.0,0.0001271,2]
[399659269,1766589040776,-500.0,0.0001271,2]
[399659271,1766589040789,-500.0,0.0001271,2]
[399659273,1766589040799,-500.0,0.0001271,2]
[399659275,1766589040809,-500.0,0.0001271,2]
[399659276,1766589040819,-500.0,0.0001271,2]
[399659278,1766589040830,-500.0,0.0001271,2]
[399659280,1766589040841,-500.0,0.0001271,2]
[399659282,1766589040851,-500.0,0.0001271,2]
[399659284,1766589040862,-500.0,0.0001271,2]
[399659286,1766589040872,-500.0,0.0001271,2]
[399659288,1766589040882,-500.0,0.0001271,2]
[399659289,1766589040892,-500.0,0.0001271,2]
[399659291,1766589040902,-500.0,0.0001271,2]
[399659293,1766589040913,-500.0,0.0001271,2]
[399659295,1766589040923,-497.69028528,0.0001271,2]
[399659297,1766589040933,-500.0,0.0001271,2]
[399659299,1766589040943,-500.0,0.0001271,2]
[399659301,1766589040953,-500.0,0.0001271,2]
[399659303,1766589040963,-500.0,0.0001271,2]
[399659304,1766589040973,-500.0,0.0001271,2]
[399659306,1766589040983,-500.0,0.0001271,2]
[399659308,1766589040993,-500.0,0.0001271,2]
[399659310,1766589041003,-500.0,0.0001271,2]
[399659312,1766589041014,-500.0,0.0001271,2]
[399659314,1766589041024,-500.0,0.0001271,2]
[399659316,1766589041034,-500.0,0.0001271,2]
[399659318,1766589041046,-500.0,0.0001271,2]
[399659320,1766589041056,-617.07240927,0.0001271,2]
[399659321,1766589041065,-500.0,0.0001271,2]
[399659323,1766589041075,-500.0,0.0001271,2]
[399659325,1766589041085,-500.0,0.0001271,2]
[399659327,1766589041095,-500.0,0.0001271,2]
[399659329,1766589041105,-500.0,0.0001271,2]
[399659331,1766589041115,-500.0,0.0001271,2]
[399659333,1766589041125,-500.0,0.0001271,2]
[399659334,1766589041139,-500.0,0.0001271,2]
[399659336,1766589041149,-500.0,0.0001271,2]
[399659338,1766589041159,-500.0,0.0001271,2]
[399659370,1766589041526,-500.0,0.0001271,2]
[399659372,1766589041538,-500.0,0.0001271,2]
[399659374,1766589041548,-500.0,0.00012712,2]
[399659376,1766589041558,-153.84414486,0.00012907,2]
[399659377,1766589041568,-514.84070869,0.00012907,2]
[399659379,1766589041578,-500.0,0.00012907,2]
[399659381,1766589041588,-500.0,0.00012907,2]
[399659383,1766589041599,-500.0,0.00012907,2]
[399659385,1766589041608,-500.0,0.00012907,2]
[399659387,1766589041618,-500.0,0.00012907,2]
[399659389,1766589041628,-500.0,0.00012907,2]
[399659391,1766589041638,-500.0,0.00012907,2]
[399659393,1766589041647,-500.0,0.00012907,2]
[399659395,1766589041657,-500.0,0.00012907,2]
[399659396,1766589041668,-500.0,0.00012907,2]
[399659398,1766589041678,-500.0,0.00012907,2]
[399659400,1766589041689,-500.0,0.00012907,2]
[399659402,1766589041699,-500.0,0.00012907,2]
[399659404,1766589041709,-500.0,0.00012907,2]
[399659406,1766589041719,-500.0,0.00012907,2]
[399659408,1766589041728,-500.0,0.00012907,2]
[399659410,1766589041738,-500.0,0.00012907,2]
[399659412,1766589041747,-500.0,0.00012907,2]
[399659413,1766589041757,-500.0,0.00012907,2]